fUST/lending_fUST_20260330
["ID","MTS","AMOUNT","RATE_DAILY","PERIOD"]
[419062518,1774823438381,-572.35719235,0.000219,2]
[419062520,1774823438391,-521.0,0.000219,10]
[419062522,1774823438401,-674.0,0.000219,10]
[419062524,1774823438410,-338.0,0.000219,10]
[419062526,1774823438420,-270.69099778,0.00021989,9]
[419063002,1774823443799,-229.30900222,0.00021989,9]
[419063003,1774823443809,-501.0,0.00021989,10]
[419063004,1774823443818,-685.0,0.00021989,10]
[419063005,1774823443828,-254.0,0.00021989,10]
[419063007,1774823443837,-8718.84,0.0002199,10]
[419063009,1774823443847,-7265.7,0.0002199,10]
[419063011,1774823443857,-6054.75,0.0002199,10]
[419063013,1774823443866,-1291.40099778,0.00021999,2]
[419063015,1774823443878,-3708.59900222,0.00021999,2]
[419063017,1774823443888,-535.73349505,0.00021999,2]
[419063019,1774823443897,-182.64258885,0.00021999,2]
[419063021,1774823443907,-13680.52737597,0.00022,2]
[419063031,1774823443993,-13768.64804938,0.00022,2]
[419063033,1774823444006,-927.1608562,0.00022,2]
[419063259,1774823446375,-481.0,0.00021999,10]
[419063260,1774823446385,-129.99505787,0.00021999,10]
[419063261,1774823446397,-441.00494213,0.00021999,10]
[419063262,1774823446407,-80059.9443533,0.00022,2]
[419063990,1774824632544,-605.0,0.00013027,2]
[419063992,1774824632558,-213.65,0.000133,2]
[419063994,1774824632568,-1000.0,0.00013699,2]
[419063996,1774824632578,-439.0,0.00017589,2]
[419063998,1774824632588,-184.0,0.00017589,2]
[419064000,1774824632598,-685.806786,0.00019434,2]
[419064002,1774824632608,-151.62389485,0.0002,2]
[419064004,1774824632618,-180.00720029,0.00020099,2]
[419064006,1774824632628,-303.0,0.00020366,2]
[419064008,1774824632637,-5252.13006249,0.0002038,2]
[419064011,1774824632649,-602.08482429,0.0002038,2]
[419064013,1774824632660,-971.23216492,0.0002038,2]
[419064015,1774824632671,-1259.76777739,0.0002038,2]
[419064017,1774824632682,-397.91517571,0.0002038,2]
[419064162,1774824642112,-2062.90935697,0.00012897,2]
[419064165,1774824642125,-2937.09064303,0.00012897,2]
[419064167,1774824642135,-3071.9246576,0.00020061,2]
[419064169,1774824642145,-38361.60311401,0.0002038,2]
[419064171,1774824642155,-303.0,0.0002038,2]
[419064173,1774824642164,-8148.59501433,0.00020489,2]
[419064175,1774824642173,-279.1158139,0.00020489,2]
[419064177,1774824642183,-303.0,0.00020504,2]
[419064179,1774824642192,-287.358,0.00020504,2]
[419064181,1774824642202,-454.7382102,0.00020624,2]
[419064183,1774824642211,-229.30900222,0.0002065,9]
[419064185,1774824642220,-303.0,0.0002065,2]
[419064187,1774824642231,-303.0,0.00020667,2]
[419064189,1774824642241,-303.0,0.00020676,2]
[419064192,1774824642250,-303.0,0.00020701,2]
[419064194,1774824642259,-734.0,0.00020784,10]
[419064196,1774824642268,-254.0,0.00020784,10]
[419064198,1774824642278,-559.0,0.00020784,10]
[419064201,1774824642288,-303.0,0.00020796,2]
[419064203,1774824642299,-303.0,0.00020953,2]
[419064205,1774824642309,-303.0,0.00020991,2]
[419064207,1774824642318,-1000.0,0.00020997,2]
[419064209,1774824642329,-303.0,0.00021204,2]
[419064211,1774824642340,-303.0,0.00021227,2]
[419064213,1774824642349,-303.0,0.00021231,2]
[419064215,1774824642359,-303.0,0.00021305,2]
[419064217,1774824642369,-303.0,0.00021382,2]
[419064219,1774824642379,-303.0,0.00021393,2]
[419064221,1774824642389,-303.0,0.00021408,2]
[419064223,1774824642398,-455.0679627,0.00021452,2]
[419064225,1774824642408,-455.0214593,0.00021452,2]
[419064227,1774824642417,-279.11581384,0.00021471,2]
[419064229,1774824642427,-303.0,0.00021505,2]
[419064231,1774824642437,-303.0,0.00021568,2]
[419064233,1774824642446,-5442.0,0.00021828,2]
[419064235,1774824642456,-303.0,0.00021892,2]
[419064237,1774824642465,-5774.93429546,0.000219,2]
[419064239,1774824642475,-303.0,0.00021902,2]
[419064241,1774824642488,-303.0,0.00021914,2]
[419064243,1774824642498,-3503.9,0.00021989,10]
[419064245,1774824642507,-7036.0,0.00021989,10]
[419064247,1774824642517,-6962.19,0.00021989,10]
[419064249,1774824642527,-500.0,0.00021999,2]
[419064251,1774824642536,-500.0,0.00021999,2]
[419064253,1774824642546,-500.0,0.00021999,2]
[419064255,1774824642555,-500.0,0.00021999,2]
[419064257,1774824642565,-500.0,0.00021999,2]
[419064259,1774824642574,-500.0,0.00021999,2]
[419064261,1774824642584,-500.0,0.00021999,2]
[419064263,1774824642593,-500.0,0.00021999,2]
[419064265,1774824642603,-500.0,0.00021999,2]
[419064267,1774824642613,-500.0,0.00021999,2]
[419064269,1774824642623,-500.0,0.00021999,2]
[419064271,1774824642632,-500.0,0.00021999,2]
[419064273,1774824642642,-500.0,0.00021999,2]
[419064275,1774824642651,-395.50334004,0.00021999,2]
[419064276,1774824642660,-500.0,0.00021999,2]
[419064279,1774824642670,-500.0,0.00021999,2]
[419064281,1774824642679,-500.0,0.00021999,2]
[419064283,1774824642689,-500.0,0.00021999,2]
[419064284,1774824642699,-250.0,0.00021999,2]
[419064286,1774824642709,-5000.0,0.00021999,2]
[419064289,1774824642718,-1392443.54931833,0.00022,2]
[419064291,1774824642730,-64125.34281828,0.00022,2]
[419064293,1774824642746,-4297.45023532,0.00022,2]
[419064318,1774824642916,-513.0,0.00021828,10]
[419064320,1774824642926,-176.93964682,0.00021828,10]
[419064322,1774824642939,-435.06035318,0.00021828,10]
[419064324,1774824642949,-505.0,0.00021828,10]
[419064326,1774824642959,-1017.93964682,0.00022,2]
[419064330,1774824642987,-102145.15918406,0.00022,2]
[419064332,1774824642998,-330.6475,0.00022,2]
[419064334,1774824643008,-595.00000075,0.00022,2]
[419064457,1774824643924,-274.6353357,0.00022,2]
[419064459,1774824643936,-771.14628782,0.00022,2]
[419064461,1774824643947,-493.6422938,0.00022,2]
[419064464,1774824643958,-40014.50763399,0.00022,2]
[419064474,1774824644053,-29359.82055245,0.00022,2]
[419064476,1774824644064,-3737.93082362,0.00022,2]
[419064478,1774824644076,-1283.82286199,0.00022,2]
[419064480,1774824644087,-1316.27915126,0.00022,2]
[419064482,1774824644099,-701.62763894,0.00022,2]
[419064485,1774824644109,-361.0,0.00022,2]
[419064489,1774824644146,-318.84759742,0.00022,2]
[419064492,1774824644158,-51089.15651307,0.00022,2]
[419064494,1774824644170,-150335.39745242,0.00022,2]
[419064748,1774824646731,-328.9,0.00022,2]
[419064768,1774824646922,-7088.18214489,0.00022,2]
[419064771,1774824646934,-6554.99999999,0.00022,2]
[419065853,1774825209931,500.0,7.657e-05,2]
[419065854,1774825209962,500.0,7.657e-05,2]
[419065855,1774825209990,5.42480274,7.657e-05,2]
[419065856,1774825262390,-3509.66385724,7.96e-05,2]
[419065857,1774825262413,-1490.33614276,7.96e-05,2]
[419065858,1774825291684,-3509.66385724,7.801e-05,2]
[419065864,1774825460468,494.57519726,7.657e-05,2]
[419065865,1774825460495,500.0,7.657e-05,2]
[419065866,1774825460522,500.0,7.657e-05,2]
[419065867,1774825460548,500.0,7.657e-05,2]
[419065868,1774825538337,-180.71763373,7.504e-05,2]
[419065920,1774825722908,151.0,4.1e-05,30]
[419066308,1774825841739,-414.06079803,5e-05,2]
[419066323,1774825841863,-5886.64513743,5e-05,2]
[419066325,1774825841873,-1200.0,7.28e-05,2]
[419066327,1774825841882,-5000.0,7.281e-05,2]
[419066329,1774825841892,-523.0,7.281e-05,2]
[419066331,1774825841901,-5000.0,7.355e-05,2]
[419066333,1774825841913,-300.0,7.425e-05,2]
[419066335,1774825841924,-300.0,7.425e-05,2]
[419066337,1774825841933,-300.0,7.425e-05,2]
[419066339,1774825841942,-300.0,7.425e-05,2]
[419066341,1774825841952,-300.0,7.426e-05,2]
[419066343,1774825841963,-1200.0,7.427e-05,2]
[419066346,1774825841972,-4205.05570723,7.429e-05,2]
[419066348,1774825841981,-1680.0,8.008e-05,2]
[419066350,1774825841991,-639.27124014,8.04e-05,2]
[419066352,1774825842000,-420.0,8.168e-05,2]
[419066354,1774825842009,-420.0,8.168e-05,2]
[419066356,1774825842018,-420.0,8.168e-05,2]
[419066358,1774825842027,-420.0,8.168e-05,2]
[419066360,1774825842037,-300.0,8.169e-05,2]
[419066362,1774825842046,-1680.0,8.17e-05,2]
[419066364,1774825842055,-2351.0,8.809e-05,2]
[419066366,1774825842064,-587.0,8.984e-05,2]
[419066368,1774825842074,-587.0,8.984e-05,2]
[419066370,1774825842084,-587.0,8.984e-05,2]
[419066372,1774825842093,-587.0,8.984e-05,2]
[419066374,1774825842103,-2351.0,8.987e-05,2]
[419066376,1774825842112,-2880.0,9.69e-05,2]
[419066378,1774825842122,-725.0,9.883e-05,2]
[419066380,1774825842131,-723.0,9.883e-05,2]
[419066382,1774825842140,-720.0,9.883e-05,2]
[419066384,1774825842150,-793.0,9.883e-05,2]
[419066386,1774825842159,-1193.0,9.885e-05,2]
[419066388,1774825842168,-568.78138368,0.00013599,2]
[419066390,1774825842177,-1000.0,0.00013699,2]
[419066392,1774825842186,-181.183,0.00017095,2]
[419066394,1774825842195,-439.0,0.00017095,2]
[419066396,1774825842204,-175.974761,0.00019837,2]
[419066398,1774825842214,-3895.68685636,0.000199,2]
[419066400,1774825842223,-1010.74,0.0002,2]
[419066402,1774825842232,-151.55000802,0.0002,2]
[419066404,1774825842241,-9.13050637,0.0002,2]
[419066406,1774825842253,-290.86949363,0.0002,2]
[419066408,1774825842262,-6854.43050637,0.0002,2]
[419066410,1774825842273,-603.519,0.0002,2]
[419066414,1774825842294,-7362.66345853,0.0002,2]
[419066416,1774825842305,-489.2024893,0.0002,2]
[419066418,1774825842317,-9188.21530655,0.0002,2]
[419066623,1774825844080,-259.48742768,4.95e-05,2]
[419066625,1774825844091,-13322.58220415,0.0002,2]
[419066627,1774825844101,-10000.0,0.0002,2]
[419066629,1774825844111,-439.0,0.00020095,2]
[419066631,1774825844121,-180.0342065,0.00020099,2]
[419066633,1774825844131,-1010.74,0.00020179,2]
[419066635,1774825844141,-566.0,0.00020315,10]
[419066638,1774825844151,-254.0,0.00020315,10]
[419066640,1774825844161,-710.0,0.00020315,10]
[419066642,1774825844171,-1010.74,0.00020357,2]
[419066644,1774825844181,-1010.74,0.00020536,2]
[419066646,1774825844191,-1399.89109147,0.0002061,2]
[419066648,1774825844202,-455.0909562,0.00020644,2]
[419066650,1774825844212,-1010.74,0.00020714,2]
[419066652,1774825844222,-266.914,0.0002086,2]
[419066654,1774825844232,-1010.74,0.00020893,2]
[419066656,1774825844241,-1300.0,0.000209,2]
[419066659,1774825844251,-258.45299725,0.000209,2]
[419066661,1774825844261,-4536.85963794,0.00020999,2]
[419066664,1774825844281,-463.14036206,0.00020999,2]
[419066666,1774825844291,-1275.85588738,0.00021,2]
[419066949,1774825847014,-519.0,0.00020315,10]
[419066951,1774825847025,-651.0,0.00020357,10]
[419066953,1774825847035,-1724.14411262,0.00021,2]
[419066956,1774825847046,-279.55669558,0.00021,2]
[419066958,1774825847056,-6000.0,0.00021,2]
[419066959,1774825847065,-2455.16209985,0.00021,2]
[419066977,1774825847216,-47544.83790015,0.00021,2]
[419066979,1774825847227,-151.15793164,0.00021,2]
[419066981,1774825847236,-3000.0,0.0002101,2]
[419066982,1774825847245,-158.46541792,0.00021011,2]
[419066983,1774825847254,-3000.0,0.0002102,2]
[419066984,1774825847264,-3000.0,0.0002103,2]
[419066985,1774825847273,-3000.0,0.0002104,2]
[419066986,1774825847283,-4325.127779,0.0002105,2]
[419066987,1774825847292,-1010.74,0.00021071,2]
[419066988,1774825847302,-500.0,0.00021099,2]
[419066989,1774825847311,-500.0,0.00021099,2]
[419066990,1774825847320,-500.0,0.00021099,2]
[419066991,1774825847329,-500.0,0.00021099,2]
[419066992,1774825847339,-500.0,0.00021099,2]
[419066993,1774825847348,-500.0,0.00021099,2]
[419066994,1774825847358,-500.0,0.00021099,2]
[419066996,1774825847367,-500.0,0.00021099,2]
[419066997,1774825847376,-500.0,0.00021099,2]
[419066999,1774825847385,-500.0,0.00021099,2]
[419067002,1774825847395,-500.0,0.00021099,2]
[419067004,1774825847404,-500.0,0.00021099,2]
[419067006,1774825847413,-500.0,0.00021099,2]
[419067008,1774825847422,-500.0,0.00021099,2]
[419067010,1774825847431,-500.0,0.00021099,2]
[419067012,1774825847440,-500.0,0.00021099,2]
[419067014,1774825847450,-500.0,0.00021099,2]
[419067016,1774825847459,-500.0,0.00021099,2]
[419067018,1774825847468,-608.02679813,0.00021099,2]
[419067020,1774825847477,-500.0,0.00021099,2]
[419067022,1774825847486,-500.0,0.00021099,2]
[419067024,1774825847495,-500.0,0.00021099,2]
[419067026,1774825847504,-18054.99102351,0.000211,2]
[419067028,1774825847515,-4902.06616919,0.000211,2]
[419067216,1774826341256,-151.0,7.7e-05,120]
[419067217,1774826341293,-151.0,7.7e-05,120]
[419067218,1774826341327,-151.0,7.7e-05,120]
[419067219,1774826358407,151.0,7.7e-05,120]
[419067220,1774826397385,151.0,7.7e-05,120]
[419067221,1774826436957,151.0,7.7e-05,120]
[419067222,1774826476473,151.0,7.7e-05,120]
[419067223,1774826516425,47.0,7.7e-05,120]
[419067224,1774826516456,104.0,7.7e-05,120]
[419067261,1774827031799,-1486.0635316,8.986e-05,2]
[419067848,1774827038045,-3513.9364684,8.986e-05,2]
[419067850,1774827038054,-5000.0,9.077e-05,2]
[419067852,1774827038063,-5000.0,9.169e-05,2]
[419067854,1774827038073,-1106.3935368,9.262e-05,2]
[419067856,1774827038082,-550.0,9.262e-05,2]
[419067858,1774827038093,-1200.0,9.361e-05,2]
[419067860,1774827038102,-300.0,9.456e-05,2]
[419067862,1774827038111,-300.0,9.456e-05,2]
[419067864,1774827038121,-300.0,9.456e-05,2]
[419067865,1774827038130,-300.0,9.456e-05,2]
[419067867,1774827038140,-300.0,9.477e-05,7]
[419067869,1774827038151,-1200.0,0.00010297,2]
[419067871,1774827038161,-300.0,0.00010402,2]
[419067873,1774827038171,-300.0,0.00010402,2]
[419067875,1774827038181,-300.0,0.00012488,2]
[419067877,1774827038190,-342.903393,0.00013699,2]
[419067879,1774827038199,-1000.0,0.00013699,2]
[419067881,1774827038209,-1000.0,0.00016438,2]
[419067883,1774827038219,-168.740303,0.00017041,2]
[419067885,1774827038229,-2196.3900541,0.00018031,2]
[419067887,1774827038238,-439.0,0.00018409,2]
[419067889,1774827038247,-168.0,0.00019014,120]
[419067891,1774827038257,-367.52405056,0.00019573,2]
[419067893,1774827038267,-5936.52104334,0.00019596,2]
[419067894,1774827038277,-500.0,0.00019673,2]
[419067897,1774827038289,-500.0,0.00019673,2]
[419067899,1774827038299,-500.42208827,0.00019673,2]
[419067901,1774827038309,-500.0,0.00019673,2]
[419067903,1774827038319,-500.0,0.00019673,2]
[419067905,1774827038329,-500.0,0.00019673,2]
[419067907,1774827038339,-504.79620014,0.00019673,2]
[419067908,1774827038348,-500.0,0.00019673,2]
[419067910,1774827038358,-500.0,0.00019673,2]
[419067912,1774827038367,-500.0,0.00019673,2]
[419067914,1774827038393,-500.0,0.00019673,2]
[419067916,1774827038403,-500.91790075,0.00019673,2]
[419067918,1774827038412,-500.47751022,0.00019673,2]
[419067920,1774827038422,-500.0,0.00019673,2]
[419067922,1774827038432,-500.29013181,0.00019673,2]
[419067924,1774827038442,-500.0,0.00019673,2]
[419067926,1774827038452,-500.0,0.00019673,2]
[419067928,1774827038461,-939.04,0.00019673,2]
[419067930,1774827038471,-500.0,0.00019693,2]
[419067932,1774827038481,-335.05411608,0.00019693,2]
[419067934,1774827038491,-500.0,0.00019693,2]
[419067936,1774827038501,-500.0,0.00019693,2]
[419067938,1774827038511,-500.0,0.00019693,2]
[419067940,1774827038520,-500.0,0.00019693,2]
[419067942,1774827038530,-500.0,0.00019693,2]
[419067944,1774827038540,-500.0,0.00019693,2]
[419067946,1774827038549,-500.0,0.00019693,2]
[419067948,1774827038558,-417.37717431,0.00019693,2]
[419067950,1774827038568,-500.0,0.00019693,2]
[419067952,1774827038577,-500.0,0.00019693,2]
[419067954,1774827038587,-500.0,0.00019693,2]
[419067956,1774827038597,-500.0,0.00019693,2]
[419067958,1774827038607,-500.0,0.00019693,2]
[419067960,1774827038616,-500.0,0.00019693,2]
[419067962,1774827038626,-500.0,0.00019693,2]
[419067964,1774827038636,-500.0,0.00019693,2]
[419067966,1774827038645,-500.0,0.00019693,2]
[419067968,1774827038654,-530.8410262,0.00019693,2]
[419067970,1774827038664,-500.0,0.00019693,2]
[419067972,1774827038673,-500.0,0.00019693,2]
[419067974,1774827038684,-500.0,0.00019693,2]
[419067976,1774827038693,-500.0,0.00019693,2]
[419067978,1774827038705,-500.0,0.00019693,2]
[419067980,1774827038714,-500.0,0.00019693,2]
[419067982,1774827038725,-500.0,0.00019693,2]
[419067984,1774827038734,-500.0,0.00019693,2]
[419067986,1774827038744,-287.20167282,0.00019693,2]
[419067988,1774827038753,-500.0,0.00019693,2]
[419067990,1774827038762,-500.0,0.00019693,2]
[419067992,1774827038772,-500.0,0.00019693,2]
[419067994,1774827038782,-500.0,0.00019693,2]
[419067996,1774827038791,-500.0,0.00019693,2]
[419067997,1774827038800,-500.0,0.00019693,2]
[419067999,1774827038810,-500.0,0.00019693,2]
[419068001,1774827038819,-500.0,0.00019693,2]
[419068003,1774827038828,-500.0,0.00019693,2]
[419068005,1774827038838,-500.0,0.00019693,2]
[419068007,1774827038847,-500.0,0.00019693,2]
[419068008,1774827038856,-500.0,0.00019693,2]
[419068009,1774827038866,-500.0,0.00019693,2]
[419068010,1774827038876,-500.0,0.00019693,2]
[419068011,1774827038885,-500.0,0.00019693,2]
[419068012,1774827038896,-500.0,0.00019693,2]
[419068013,1774827038906,-500.0,0.00019693,2]
[419068014,1774827038916,-500.0,0.00019693,2]
[419068015,1774827038926,-500.0,0.00019693,2]
[419068016,1774827038936,-500.0,0.00019693,2]
[419068017,1774827038946,-500.0,0.00019693,2]
[419068018,1774827038956,-500.0,0.00019693,2]
[419068019,1774827038966,-500.0,0.00019693,2]
[419068020,1774827038976,-500.0,0.00019693,2]
[419068021,1774827038986,-500.0,0.00019693,2]
[419068022,1774827038995,-500.0,0.00019693,2]
[419068023,1774827039005,-500.0,0.00019693,2]
[419068024,1774827039015,-528.08011705,0.00019693,2]
[419068025,1774827039025,-500.0,0.00019693,2]
[419068026,1774827039035,-500.0,0.00019693,2]
[419068027,1774827039046,-500.0,0.00019693,2]
[419068028,1774827039056,-500.0,0.00019693,2]
[419068029,1774827039065,-500.0,0.00019693,2]
[419068030,1774827039075,-500.0,0.00019693,2]
[419068031,1774827039085,-500.0,0.00019693,2]
[419068032,1774827039095,-218.81762816,0.00019693,2]
[419068033,1774827039104,-500.0,0.00019693,2]
[419068034,1774827039115,-500.0,0.00019693,2]
[419068035,1774827039125,-500.0,0.00019693,2]
[419068036,1774827039135,-500.0,0.00019693,2]
[419068037,1774827039145,-500.0,0.00019693,2]
[419068038,1774827039155,-500.0,0.00019693,2]
[419068039,1774827039165,-500.0,0.00019693,2]
[419068040,1774827039175,-500.0,0.00019693,2]
[419068041,1774827039185,-500.0,0.00019693,2]
[419068042,1774827039195,-500.0,0.00019693,2]
[419068043,1774827039204,-500.0,0.00019693,2]
[419068044,1774827039214,-500.0,0.00019693,2]
[419068045,1774827039224,-500.0,0.00019693,2]
[419068046,1774827039234,-500.0,0.00019693,2]
[419068047,1774827039245,-500.0,0.00019693,2]
[419068048,1774827039254,-500.0,0.00019693,2]
[419068049,1774827039264,-500.0,0.00019693,2]
[419068050,1774827039275,-500.0,0.00019693,2]
[419068051,1774827039284,-500.0,0.00019693,2]
[419068052,1774827039294,-500.0,0.00019693,2]
[419068053,1774827039304,-5000.0,0.00019694,2]
[419068054,1774827039314,-500.0,0.00019695,2]
[419068055,1774827039324,-500.0,0.00019695,2]
[419068056,1774827039334,-500.0,0.00019695,2]
[419068058,1774827039344,-500.0,0.00019695,2]
[419068059,1774827039354,-500.0,0.00019695,2]
[419068061,1774827039364,-500.0,0.00019695,2]
[419068062,1774827039374,-175.61875869,0.00019695,2]
[419068063,1774827039384,-500.0,0.00019695,2]
[419068064,1774827039394,-500.0,0.00019695,2]
[419068065,1774827039403,-500.0,0.00019695,2]
[419068066,1774827039414,-500.0,0.00019695,2]
[419068067,1774827039423,-500.0,0.00019695,2]
[419068068,1774827039433,-500.0,0.00019695,2]
[419068069,1774827039443,-500.0,0.00019695,2]
[419068070,1774827039545,-500.0,0.00019695,2]
[419068071,1774827039556,-500.0,0.00019695,2]
[419068072,1774827039565,-650.0,0.00019695,2]
[419068073,1774827039576,-500.0,0.00019695,2]
[419068074,1774827039587,-500.0,0.00019695,2]
[419068075,1774827039596,-704530.80992782,0.00019696,2]
[419068076,1774827039631,-1312.0,0.00019696,2]
[419068077,1774827039643,-63219.11053669,0.00019696,2]
[419068078,1774827039654,-2646.37745693,0.00019696,2]
[419068079,1774827039664,-200.0,0.00019772,2]
[419068080,1774827039674,-404.30351197,0.00019773,2]
[419068081,1774827039686,-500.0,0.00019773,2]
[419068082,1774827039696,-500.45055952,0.00019773,2]
[419068083,1774827039706,-501.53351042,0.00019773,2]
[419068084,1774827039716,-500.0,0.00019773,2]
[419068085,1774827039725,-500.0,0.00019773,2]
[419068086,1774827039736,-455.0679627,0.00019822,2]
[419068087,1774827039746,-214.07496632,0.0002,2]
[419068088,1774827039756,-300.0,0.0002,2]
[419068089,1774827039766,-1007.16,0.0002,2]
[419068090,1774827039776,-272.0,0.00020071,120]
[419068091,1774827039786,-163.0,0.00020071,120]
[419068092,1774827039796,-163.0,0.00020071,120]
[419068093,1774827039805,-165.0,0.00020071,120]
[419068094,1774827039815,-246.50257355,0.00020099,2]
[419068095,1774827039825,-500.0,0.00020221,2]
[419068096,1774827039835,-249.4271512,0.00020221,2]
[419068097,1774827039845,-500.0,0.00020221,2]
[419068098,1774827039855,-500.0,0.00020221,2]
[419068099,1774827039865,-501.17173248,0.00020221,2]
[419068100,1774827039875,-500.0,0.00020221,2]
[419068101,1774827039885,-419.82003822,0.00020221,2]
[419068102,1774827040706,-300.0,9.477e-05,24]
[419068103,1774827040717,-80.17996178,0.00020221,2]
[419068104,1774827040727,-507.05983652,0.00020221,2]
[419068105,1774827040736,-500.0,0.00020221,2]
[419068106,1774827040745,-1007.16,0.00020263,2]
[419068107,1774827040755,-502.70467314,0.00020321,2]
[419068108,1774827040764,-1007.16,0.00020526,2]
[419068109,1774827040774,-342.903393,0.00020548,2]
[419068110,1774827040783,-122.53539204,0.00020644,2]
[419068111,1774827040795,-73.67590826,0.00020644,2]
[419068112,1774827040804,-196.0947661,0.00020644,2]
[419068113,1774827040814,-352.72932564,0.00020673,2]
[419068487,1774827045988,-300.0,9.477e-05,12]
[419068488,1774827045998,-300.0,9.477e-05,13]
[419068489,1774827046008,-300.0,9.477e-05,6]
[419068491,1774827046018,-300.0,9.477e-05,7]
[419068493,1774827046027,-833.04429376,0.00019496,2]
[419068495,1774827046039,-2276.63473756,0.00019496,2]
[419068497,1774827046051,-1890.32096868,0.00019496,2]
[419068499,1774827046061,-147.27067436,0.00020673,2]
[419068501,1774827046070,-367.52405052,0.00020684,2]
[419068503,1774827046080,-592.0,0.00020688,10]
[419068505,1774827046090,-736.0,0.00020688,10]
[419068507,1774827046100,-1007.16,0.00020789,2]
[419068509,1774827046110,-373.156,0.00020997,2]
[419068511,1774827046119,-1007.16,0.00021053,2]
[419068513,1774827046129,-272.0,0.00021074,120]
[419068515,1774827046139,-163.0,0.00021074,120]
[419068517,1774827046149,-163.0,0.00021074,120]
[419068519,1774827046159,-165.0,0.00021074,120]
[419068521,1774827046169,-11455.60006313,0.000211,2]
[419068523,1774827046181,-4740.16662601,0.000211,2]
[419068525,1774827046193,-2828.11384444,0.000211,2]
[419068527,1774827046203,-462.71123802,0.000211,2]
[419068529,1774827046219,-537.28876198,0.000211,2]
[419068531,1774827046228,-1007.16,0.00021316,2]
[419068534,1774827046238,-1047.89429905,0.000215,2]
[419068537,1774827046248,-9926.56289266,0.000215,2]
[419068539,1774827046260,-1050.59287838,0.000215,2]
[419068542,1774827046275,-1989.00102813,0.000215,2]
[419068544,1774827046285,-200.0,0.000215,2]
[419068546,1774827046295,-488.85120934,0.0002156,2]
[419068548,1774827046305,-1007.16,0.00021579,2]
[419068550,1774827046314,-367.52405052,0.00021796,2]
[419068552,1774827046324,-151.0,0.000218,3]
[419068554,1774827046333,-1007.16,0.00021842,2]
[419068556,1774827046342,-626.03126047,0.00021849,2]
[419068558,1774827046352,-205.49,0.00021875,2]
[419068559,1774827046362,-1300.0,0.000219,2]
[419068561,1774827046372,-5197.44086586,0.000219,2]
[419068563,1774827046381,-500.0,0.00021918,2]
[419068565,1774827046391,-500.0,0.00021918,2]
[419068567,1774827046400,-295.25813867,0.00021918,2]
[419068569,1774827046410,-346.80749876,0.00021973,2]
[419068571,1774827046419,-500.0,0.00021973,2]
[419068573,1774827046428,-500.0,0.00021973,2]
[419068575,1774827046438,-500.0,0.00021973,2]
[419068577,1774827046447,-500.0,0.00021973,2]
[419068579,1774827046457,-440.32778464,0.00021973,2]
[419068581,1774827046466,-500.0,0.00021973,2]
[419068583,1774827046476,-500.0,0.00021973,2]
[419068585,1774827046485,-345.82473044,0.00021973,2]
[419068587,1774827046494,-500.0,0.00021973,2]
[419068589,1774827046504,-500.0,0.00021973,2]
[419068590,1774827046513,-500.0,0.00021973,2]
[419068592,1774827046522,-500.0,0.00021973,2]
[419068594,1774827046532,-500.0,0.00021973,2]
[419068596,1774827046542,-500.0,0.00021973,2]
[419068598,1774827046552,-500.0,0.00021973,2]
[419068600,1774827046562,-500.0,0.00021973,2]